[Event "*** Titled Tuesday Blitz"]
[Site "Chess.com"]
[Date "2020.10.27"]
[Round "4"]
[White "Mazetovic"]
[Black "SilviusTiberius"]
[Result "1-0"]
[WhiteElo "2756"]
[BlackElo "2530"]
[TimeControl "180+1"]
[EndTime "10:39:10 PDT"]
[Termination "Mazetovic won on time"]

1. e4 {[%clk 0:03:00.9]} 1... e5 {[%clk 0:02:59.8]} 2. Nf3 {[%clk 0:02:59.4]}
2... Nc6 {[%clk 0:03:00.3]} 3. Bb5 {[%clk 0:02:59]} 3... a6 {[%clk 0:03:00.6]}
4. Ba4 {[%clk 0:02:59.2]} 4... Nf6 {[%clk 0:03:01.1]} 5. Nc3 {[%clk 0:02:58.9]}
5... b5 {[%clk 0:02:53.3]} 6. Bb3 {[%clk 0:02:57.7]} 6... Be7 {[%clk 0:02:50.2]}
7. a4 {[%clk 0:02:56.7]} 7... b4 {[%clk 0:02:48.9]} 8. Nd5 {[%clk 0:02:56.8]}
8... d6 {[%clk 0:02:46.7]} 9. Nxf6+ {[%clk 0:02:36.8]} 9... Bxf6 {[%clk
0:02:45.6]} 10. Bd5 {[%clk 0:02:34.6]} 10... Bd7 {[%clk 0:02:43.1]} 11. d3
{[%clk 0:02:34.4]} 11... Rb8 {[%clk 0:02:40.6]} 12. a5 {[%clk 0:02:30.9]} 12...
Rb5 {[%clk 0:02:33.8]} 13. Bxc6 {[%clk 0:02:27.6]} 13... Bxc6 {[%clk 0:02:33.7]}
14. O-O {[%clk 0:02:27]} 14... O-O {[%clk 0:02:33.3]} 15. b3 {[%clk 0:02:11.2]}
15... Bd7 {[%clk 0:02:22.6]} 16. Nd2 {[%clk 0:02:08.8]} 16... g6 {[%clk
0:02:06.7]} 17. Nc4 {[%clk 0:02:08.1]} 17... Bg7 {[%clk 0:02:07.1]} 18. Bb2
{[%clk 0:02:05.5]} 18... f5 {[%clk 0:02:07]} 19. f3 {[%clk 0:02:00.8]} 19... Be6
{[%clk 0:01:58.3]} 20. Qe2 {[%clk 0:01:56.6]} 20... c5 {[%clk 0:01:42.8]} 21.
Rfd1 {[%clk 0:01:47.2]} 21... Rb7 {[%clk 0:01:41.7]} 22. Nb6 {[%clk 0:01:46.2]}
22... Rbf7 {[%clk 0:01:38.4]} 23. Re1 {[%clk 0:01:36.9]} 23... Bh6 {[%clk
0:01:37]} 24. Bc1 {[%clk 0:01:35.9]} 24... Bxc1 {[%clk 0:01:36.3]} 25. Raxc1
{[%clk 0:01:35.4]} 25... f4 {[%clk 0:01:36.8]} 26. Qf2 {[%clk 0:01:29.4]} 26...
g5 {[%clk 0:01:35.8]} 27. h3 {[%clk 0:01:29.8]} 27... Rg7 {[%clk 0:01:35.5]} 28.
Kf1 {[%clk 0:01:30]} 28... h5 {[%clk 0:01:35.9]} 29. Ke2 {[%clk 0:01:30.3]}
29... g4 {[%clk 0:01:35.6]} 30. hxg4 {[%clk 0:01:30.8]} 30... hxg4 {[%clk
0:01:35.8]} 31. Rh1 {[%clk 0:01:30.6]} 31... Rf6 {[%clk 0:01:33.6]} 32. Rh4
{[%clk 0:01:19.1]} 32... gxf3+ {[%clk 0:01:25.8]} 33. gxf3 {[%clk 0:01:18.8]}
33... Rfg6 {[%clk 0:01:24.3]} 34. Rch1 {[%clk 0:01:17.9]} 34... Kf7 {[%clk
0:01:14.7]} 35. Rh8 {[%clk 0:01:16.7]} 35... Qe7 {[%clk 0:01:04.5]} 36. R1h2
{[%clk 0:01:15.4]} 36... Rg3 {[%clk 0:01:01.5]} 37. Kd2 {[%clk 0:01:13.5]} 37...
Qg5 {[%clk 0:00:54.9]} 38. Ra8 {[%clk 0:00:58.9]} 38... Kg6 {[%clk 0:00:27.6]}
39. Rxa6 {[%clk 0:00:55.8]} 39... Rh7 {[%clk 0:00:27.7]} 40. Rxh7 {[%clk
0:00:52.2]} 40... Kxh7 {[%clk 0:00:27.7]} 41. Kc1 {[%clk 0:00:49.3]} 41... Rg2
{[%clk 0:00:26.8]} 42. Ra7+ {[%clk 0:00:47.5]} 42... Kg6 {[%clk 0:00:25.3]} 43.
Qxg2 {[%clk 0:00:43.1]} 43... Qxg2 {[%clk 0:00:25]} 44. a6 {[%clk 0:00:41.9]}
44... Qxf3 {[%clk 0:00:24.7]} 45. Re7 {[%clk 0:00:39.4]} 45... Qe3+ {[%clk
0:00:23.3]} 46. Kb2 {[%clk 0:00:34.6]} 46... Bxb3 {[%clk 0:00:18.7]} 47. a7
{[%clk 0:00:31.8]} 47... Qd2 {[%clk 0:00:16.3]} 48. Kxb3 {[%clk 0:00:30.4]}
48... Qc3+ {[%clk 0:00:16.4]} 49. Ka4 {[%clk 0:00:30.7]} 49... Qxc2+ {[%clk
0:00:14.9]} 50. Kb5 {[%clk 0:00:30.7]} 50... Qxd3+ {[%clk 0:00:15.2]} 51. Kc6
{[%clk 0:00:30.2]} 51... Qxe4+ {[%clk 0:00:12.7]} 52. Nd5 {[%clk 0:00:28.5]} 1-0

[Event "*** Titled Tuesday Blitz"]
[Site "Chess.com"]
[Date "2020.10.27"]
[Round "4"]
[White "TheCavemanChesss"]
[Black "Pultis"]
[Result "0-1"]
[WhiteElo "2511"]
[BlackElo "2715"]
[TimeControl "180+1"]
[EndTime "10:39:10 PDT"]
[Termination "Pultis won by checkmate"]

1. d4 {[%clk 0:02:47.2]} 1... Nf6 {[%clk 0:02:58.8]} 2. c4 {[%clk 0:02:46.9]}
2... g6 {[%clk 0:02:57]} 3. Nc3 {[%clk 0:02:46.9]} 3... Bg7 {[%clk 0:02:56]} 4.
e4 {[%clk 0:02:46.4]} 4... d6 {[%clk 0:02:55.5]} 5. Nf3 {[%clk 0:02:46.8]} 5...
O-O {[%clk 0:02:55.2]} 6. Be2 {[%clk 0:02:47]} 6... c5 {[%clk 0:02:55.6]} 7. d5
{[%clk 0:02:44]} 7... e6 {[%clk 0:02:55.9]} 8. O-O {[%clk 0:02:42.3]} 8... exd5
{[%clk 0:02:56.4]} 9. exd5 {[%clk 0:02:42.5]} 9... a6 {[%clk 0:02:53]} 10. h3
{[%clk 0:02:35.1]} 10... Nbd7 {[%clk 0:02:48.5]} 11. Bf4 {[%clk 0:02:33.4]}
11... Qc7 {[%clk 0:02:41]} 12. Re1 {[%clk 0:02:27.7]} 12... b6 {[%clk
0:02:32.9]} 13. Bd3 {[%clk 0:02:17]} 13... Bb7 {[%clk 0:02:31.1]} 14. a4 {[%clk
0:02:13.7]} 14... Rae8 {[%clk 0:02:29.8]} 15. Qd2 {[%clk 0:01:55.4]} 15... Ne5
{[%clk 0:02:22.2]} 16. Nxe5 {[%clk 0:01:53.1]} 16... dxe5 {[%clk 0:02:21.9]} 17.
Bh2 {[%clk 0:01:51.8]} 17... Nh5 {[%clk 0:02:19]} 18. a5 {[%clk 0:01:37.6]}
18... bxa5 {[%clk 0:02:11.9]} 19. Be2 {[%clk 0:00:45.4]} 19... Nf4 {[%clk
0:02:09.3]} 20. Bf1 {[%clk 0:00:45.2]} 20... Bh6 {[%clk 0:01:35.7]} 21. Kh1
{[%clk 0:00:39]} 21... Kg7 {[%clk 0:01:31.3]} 22. Qd1 {[%clk 0:00:33.7]} 22...
f6 {[%clk 0:00:42]} 23. Qa4 {[%clk 0:00:30.5]} 23... Rb8 {[%clk 0:00:34.1]} 24.
Qxa5 {[%clk 0:00:29.4]} 24... Qe7 {[%clk 0:00:33.9]} 25. Ne4 {[%clk 0:00:11.9]}
25... Rfc8 {[%clk 0:00:32.7]} 26. Rad1 {[%clk 0:00:11.2]} 26... Ba8 {[%clk
0:00:08.8]} 27. Rb1 {[%clk 0:00:10.7]} 27... Bb7 {[%clk 0:00:07.2]} 28. Qc3
{[%clk 0:00:09.6]} 28... Qc7 {[%clk 0:00:06.7]} 29. b3 {[%clk 0:00:07.7]} 29...
a5 {[%clk 0:00:06.7]} 30. Ra1 {[%clk 0:00:06.5]} 30... Ra8 {[%clk 0:00:07.2]}
31. Ra4 {[%clk 0:00:05.7]} 31... Ra6 {[%clk 0:00:07.6]} 32. Rea1 {[%clk
0:00:05.4]} 32... Rca8 {[%clk 0:00:07.3]} 33. g3 {[%clk 0:00:05.7]} 33... Nh5
{[%clk 0:00:02.4]} 34. Bg2 {[%clk 0:00:05.6]} 34... Kg8 {[%clk 0:00:02.7]} 35.
Qe1 {[%clk 0:00:04.1]} 35... Bg7 {[%clk 0:00:02.9]} 36. g4 {[%clk 0:00:02.8]}
36... Nf4 {[%clk 0:00:02.4]} 37. Bxf4 {[%clk 0:00:03.4]} 37... exf4 {[%clk
0:00:03.3]} 38. Qd2 {[%clk 0:00:03.5]} 38... f5 {[%clk 0:00:03.4]} 39. gxf5
{[%clk 0:00:03.8]} 39... gxf5 {[%clk 0:00:04.3]} 40. Rb4 {[%clk 0:00:04.1]}
40... axb4 {[%clk 0:00:04.2]} 41. Rxa6 {[%clk 0:00:03]} 41... Rxa6 {[%clk
0:00:05.1]} 42. Ng5 {[%clk 0:00:03.3]} 42... Ra1+ {[%clk 0:00:05.5]} 43. Kh2
{[%clk 0:00:01.1]} 43... f3+ {[%clk 0:00:05.9]} 44. Qf4 {[%clk 0:00:01.1]} 44...
Qxf4# {[%clk 0:00:05.6]} 0-1

[Event "*** Titled Tuesday Blitz"]
[Site "Chess.com"]
[Date "2020.10.27"]
[Round "4"]
[White "Th3_Hound"]
[Black "maciek_92"]
[Result "0-1"]
[WhiteElo "2503"]
[BlackElo "2699"]
[TimeControl "180+1"]
[EndTime "10:39:16 PDT"]
[Termination "maciek_92 won by resignation"]

1. e4 {[%clk 0:03:00.9]} 1... c5 {[%clk 0:03:00.2]} 2. Nf3 {[%clk 0:03:00]} 2...
d6 {[%clk 0:03:00.8]} 3. d4 {[%clk 0:03:00]} 3... cxd4 {[%clk 0:03:01.7]} 4.
Nxd4 {[%clk 0:02:59.9]} 4... Nf6 {[%clk 0:03:02.4]} 5. Nc3 {[%clk 0:03:00.2]}
5... a6 {[%clk 0:03:03]} 6. h3 {[%clk 0:02:59.5]} 6... e5 {[%clk 0:03:01.9]} 7.
Nde2 {[%clk 0:02:58.2]} 7... Be6 {[%clk 0:02:57.6]} 8. g4 {[%clk 0:02:56.6]}
8... b5 {[%clk 0:02:51.1]} 9. Bg2 {[%clk 0:02:53.6]} 9... b4 {[%clk 0:02:37.7]}
10. Nd5 {[%clk 0:02:49.3]} 10... Bxd5 {[%clk 0:02:38.1]} 11. exd5 {[%clk
0:02:50.2]} 11... Nbd7 {[%clk 0:02:34.1]} 12. a3 {[%clk 0:02:50.1]} 12... a5
{[%clk 0:02:32.6]} 13. Bd2 {[%clk 0:02:47]} 13... Rb8 {[%clk 0:02:16]} 14. axb4
{[%clk 0:02:46.2]} 14... axb4 {[%clk 0:02:16.9]} 15. Ra4 {[%clk 0:02:44.5]}
15... b3 {[%clk 0:02:06.7]} 16. cxb3 {[%clk 0:02:44.4]} 16... Be7 {[%clk
0:02:02.9]} 17. b4 {[%clk 0:02:44]} 17... O-O {[%clk 0:02:02.1]} 18. Ra6 {[%clk
0:02:39.6]} 18... e4 {[%clk 0:01:51.9]} 19. O-O {[%clk 0:02:24]} 19... Nxd5
{[%clk 0:01:30.5]} 20. Bxe4 {[%clk 0:02:20.2]} 20... Nxb4 {[%clk 0:01:30.6]} 21.
Ra1 {[%clk 0:01:56.5]} 21... Nc5 {[%clk 0:01:28]} 22. Bg2 {[%clk 0:01:51.4]}
22... Nbd3 {[%clk 0:01:11]} 23. Nc3 {[%clk 0:01:46.3]} 23... Nxb2 {[%clk
0:01:02.8]} 24. Qc2 {[%clk 0:01:43.7]} 24... Nc4 {[%clk 0:00:57.7]} 25. Nd5
{[%clk 0:01:40.5]} 25... Nxd2 {[%clk 0:00:56.9]} 26. Qxd2 {[%clk 0:01:40.2]}
26... Bg5 {[%clk 0:00:51.4]} 27. Qc2 {[%clk 0:01:24.7]} 27... Bf6 {[%clk
0:00:35.6]} 28. Ra7 {[%clk 0:01:22.1]} 28... Kh8 {[%clk 0:00:30.1]} 29. Qf5
{[%clk 0:01:16.6]} 29... Bd4 {[%clk 0:00:14.7]} 30. Rd1 {[%clk 0:00:57.9]} 30...
g6 {[%clk 0:00:11.7]} 31. Qf3 {[%clk 0:00:56.8]} 31... Be5 {[%clk 0:00:11.6]}
32. Rxf7 {[%clk 0:00:54.4]} 32... Rxf7 {[%clk 0:00:11.5]} 33. Qxf7 {[%clk
0:00:55.3]} 33... Qh4 {[%clk 0:00:09.1]} 34. f4 {[%clk 0:00:29.2]} 34... Bg7
{[%clk 0:00:07.5]} 35. Kh1 {[%clk 0:00:18.9]} 35... Rf8 {[%clk 0:00:06.6]} 36.
Qc7 {[%clk 0:00:15.7]} 36... Ne4 {[%clk 0:00:06.9]} 37. Bxe4 {[%clk 0:00:13.5]}
37... Qxh3+ {[%clk 0:00:07.4]} 38. Kg1 {[%clk 0:00:12.8]} 38... Qxg4+ {[%clk
0:00:08.3]} 39. Bg2 {[%clk 0:00:10.1]} 39... Qxd1+ {[%clk 0:00:09.2]} 40. Kh2
{[%clk 0:00:10.6]} 40... Qh5+ {[%clk 0:00:08.6]} 41. Kg3 {[%clk 0:00:10.9]}
41... g5 {[%clk 0:00:08.1]} 42. Qxd6 {[%clk 0:00:11]} 42... gxf4+ {[%clk
0:00:08.4]} 43. Kf2 {[%clk 0:00:10.9]} 43... Qe5 {[%clk 0:00:07.9]} 44. Qxe5
{[%clk 0:00:10.7]} 44... Bxe5 {[%clk 0:00:08.8]} 45. Bf3 {[%clk 0:00:10.6]}
45... Rb8 {[%clk 0:00:08.4]} 46. Ne7 {[%clk 0:00:10.1]} 46... Rb2+ {[%clk
0:00:08.8]} 47. Kf1 {[%clk 0:00:10.3]} 47... Kg7 {[%clk 0:00:09.3]} 48. Nf5+
{[%clk 0:00:10.5]} 48... Kf6 {[%clk 0:00:09.6]} 49. Nh4 {[%clk 0:00:10.7]} 49...
Bd4 {[%clk 0:00:09.7]} 50. Ng2 {[%clk 0:00:10.9]} 50... Rf2+ {[%clk 0:00:09.5]}
0-1

[Event "*** Titled Tuesday Blitz"]
[Site "Chess.com"]
[Date "2020.10.27"]
[Round "4"]
[White "Colombiano07"]
[Black "Rakesh"]
[Result "1-0"]
[WhiteElo "2294"]
[BlackElo "2444"]
[TimeControl "180+1"]
[EndTime "10:39:16 PDT"]
[Termination "Colombiano07 won on time"]

1. e4 {[%clk 0:03:00.8]} 1... c5 {[%clk 0:02:57.9]} 2. Nf3 {[%clk 0:02:58.1]}
2... e6 {[%clk 0:02:56.7]} 3. b4 {[%clk 0:02:58.3]} 3... cxb4 {[%clk 0:02:56.2]}
4. d4 {[%clk 0:02:59]} 4... d5 {[%clk 0:02:54.8]} 5. e5 {[%clk 0:02:59.6]} 5...
Nc6 {[%clk 0:02:54.6]} 6. a3 {[%clk 0:02:59.9]} 6... bxa3 {[%clk 0:02:54.2]} 7.
Bxa3 {[%clk 0:03:00.8]} 7... Bxa3 {[%clk 0:02:54.4]} 8. Rxa3 {[%clk 0:03:01.7]}
8... Nge7 {[%clk 0:02:54.5]} 9. Bd3 {[%clk 0:03:02.4]} 9... O-O {[%clk
0:02:53.8]} 10. Bxh7+ {[%clk 0:03:00.3]} 10... Kxh7 {[%clk 0:02:53.1]} 11. Ng5+
{[%clk 0:03:00.6]} 11... Kg6 {[%clk 0:02:51.3]} 12. Rg3 {[%clk 0:02:46.7]} 12...
Nf5 {[%clk 0:02:49.7]} 13. Nxe6+ {[%clk 0:02:45.2]} 13... Nxg3 {[%clk 0:02:50]}
14. Nxd8 {[%clk 0:02:46.1]} 14... Nxh1 {[%clk 0:02:50]} 15. Nxc6 {[%clk
0:02:43.6]} 15... bxc6 {[%clk 0:02:50.9]} 16. Kf1 {[%clk 0:02:39.1]} 16... Rh8
{[%clk 0:02:47.4]} 17. Kg1 {[%clk 0:02:35.9]} 17... Nxf2 {[%clk 0:02:44]} 18.
Kxf2 {[%clk 0:02:08.4]} 18... Rxh2 {[%clk 0:02:42.9]} 19. Qd3+ {[%clk
0:02:02.8]} 19... Kh6 {[%clk 0:02:33.8]} 20. Nd2 {[%clk 0:01:40.1]} 20... Rh5
{[%clk 0:02:30.9]} 21. Qa3 {[%clk 0:01:35.8]} 21... Kh7 {[%clk 0:02:26.2]} 22.
Qf8 {[%clk 0:01:32.9]} 22... a5 {[%clk 0:02:13.8]} 23. Nf3 {[%clk 0:01:30.6]}
23... Rf5 {[%clk 0:02:12.2]} 24. Qe8 {[%clk 0:01:27.5]} 24... Rb8 {[%clk
0:01:11.8]} 25. Qxc6 {[%clk 0:01:13.5]} 25... Be6 {[%clk 0:01:11.2]} 26. Ke3
{[%clk 0:01:10.3]} 26... Rc8 {[%clk 0:01:09.6]} 27. Qb5 {[%clk 0:01:08.1]} 27...
Rxc2 {[%clk 0:01:08.7]} 28. Qxa5 {[%clk 0:01:07.7]} 28... Rxg2 {[%clk
0:01:08.5]} 29. Qe1 {[%clk 0:01:04.2]} 29... Kg8 {[%clk 0:01:03.6]} 30. Ng1
{[%clk 0:01:01.4]} 30... Rg4 {[%clk 0:01:01.7]} 31. Ne2 {[%clk 0:00:59.3]} 31...
Re4+ {[%clk 0:00:59.9]} 32. Kd2 {[%clk 0:00:57.6]} 32... Rf3 {[%clk 0:00:57]}
33. Qg1 {[%clk 0:00:57.4]} 33... Bg4 {[%clk 0:00:51.9]} 34. Nc3 {[%clk
0:00:54.2]} 34... Ref4 {[%clk 0:00:42]} 35. Nxd5 {[%clk 0:00:54.1]} 35... Rf2+
{[%clk 0:00:39.2]} 36. Kc3 {[%clk 0:00:51.8]} 36... R4f3+ {[%clk 0:00:39]} 37.
Kb4 {[%clk 0:00:50.2]} 37... Be6 {[%clk 0:00:39]} 38. Qg5 {[%clk 0:00:45.3]}
38... Bxd5 {[%clk 0:00:18]} 39. Qd8+ {[%clk 0:00:45.1]} 39... Kh7 {[%clk
0:00:18.5]} 40. Qxd5 {[%clk 0:00:46]} 40... Rf4 {[%clk 0:00:16.9]} 41. Qh1+
{[%clk 0:00:39.8]} 41... Kg6 {[%clk 0:00:16.5]} 42. Kc5 {[%clk 0:00:35.5]} 42...
Rd2 {[%clk 0:00:08.1]} 43. d5 {[%clk 0:00:32.8]} 43... Rff2 {[%clk 0:00:05.2]}
44. Kd6 {[%clk 0:00:30.7]} 44... f5 {[%clk 0:00:02.8]} 45. Ke7 {[%clk
0:00:25.4]} 45... f4 {[%clk 0:00:02.2]} 46. e6 {[%clk 0:00:20.1]} 46... Rfe2
{[%clk 0:00:02.4]} 47. d6 {[%clk 0:00:18.1]} 47... Kf5 {[%clk 0:00:01.2]} 48. d7
{[%clk 0:00:18.5]} 1-0

[Event "*** Titled Tuesday Blitz"]
[Site "Chess.com"]
[Date "2020.10.27"]
[Round "4"]
[White "alexwinter25"]
[Black "Euge_chess"]
[Result "1-0"]
[WhiteElo "2338"]
[BlackElo "2092"]
[TimeControl "180+1"]
[EndTime "10:39:19 PDT"]
[Termination "alexwinter25 won on time"]

1. e4 {[%clk 0:03:00.9]} 1... e5 {[%clk 0:02:59]} 2. Nf3 {[%clk 0:03:00.4]} 2...
Nc6 {[%clk 0:02:58.8]} 3. d4 {[%clk 0:03:00.7]} 3... exd4 {[%clk 0:02:58.3]} 4.
Bc4 {[%clk 0:03:01.3]} 4... Nf6 {[%clk 0:02:55.6]} 5. Ng5 {[%clk 0:03:01.7]}
5... d5 {[%clk 0:02:47.6]} 6. exd5 {[%clk 0:03:02.6]} 6... Nxd5 {[%clk
0:02:43.5]} 7. O-O {[%clk 0:02:57.7]} 7... Be7 {[%clk 0:02:25.1]} 8. Nxf7 {[%clk
0:02:57.1]} 8... Kxf7 {[%clk 0:02:02]} 9. Qf3+ {[%clk 0:02:55.9]} 9... Bf6
{[%clk 0:01:58.6]} 10. Bxd5+ {[%clk 0:02:54.8]} 10... Kf8 {[%clk 0:01:55.6]} 11.
b3 {[%clk 0:02:27.2]} 11... Bg4 {[%clk 0:01:35.6]} 12. Ba3+ {[%clk 0:02:16.2]}
12... Ne7 {[%clk 0:01:29]} 13. Bxe7+ {[%clk 0:01:51]} 13... Kxe7 {[%clk
0:01:24.3]} 14. Qe4+ {[%clk 0:01:43.4]} 14... Kf8 {[%clk 0:01:23.8]} 15. Bxb7
{[%clk 0:01:26.5]} 15... Rb8 {[%clk 0:01:23.4]} 16. Nd2 {[%clk 0:01:12.6]} 16...
Bh5 {[%clk 0:01:11.4]} 17. Bd5 {[%clk 0:01:10.5]} 17... Bg6 {[%clk 0:01:06]} 18.
Qf3 {[%clk 0:01:10.6]} 18... Qd6 {[%clk 0:00:51.5]} 19. Nc4 {[%clk 0:01:02.7]}
19... Qd7 {[%clk 0:00:35]} 20. Rad1 {[%clk 0:01:01.6]} 20... Qf5 {[%clk
0:00:33.5]} 21. Qxf5 {[%clk 0:00:54.1]} 21... Bxf5 {[%clk 0:00:29.5]} 22. Rd2
{[%clk 0:00:54.1]} 22... Rd8 {[%clk 0:00:25.9]} 23. Bf3 {[%clk 0:00:52.8]} 23...
c5 {[%clk 0:00:24.4]} 24. h3 {[%clk 0:00:52.9]} 24... Bg5 {[%clk 0:00:22.1]} 25.
Rdd1 {[%clk 0:00:46.3]} 25... Kf7 {[%clk 0:00:19.5]} 26. Rfe1 {[%clk 0:00:35.7]}
26... Bxc2 {[%clk 0:00:18.5]} 27. Ne5+ {[%clk 0:00:35.4]} 27... Kf6 {[%clk
0:00:15]} 28. Ng4+ {[%clk 0:00:32.6]} 28... Kf7 {[%clk 0:00:13.2]} 29. Ne5+
{[%clk 0:00:31.7]} 29... Kf6 {[%clk 0:00:12.9]} 30. Ng4+ {[%clk 0:00:32.1]}
30... Kf7 {[%clk 0:00:12.7]} 31. Ra1 {[%clk 0:00:33]} 31... Bd2 {[%clk
0:00:09.7]} 32. Re5 {[%clk 0:00:31.2]} 32... Bc3 {[%clk 0:00:09.3]} 33. Rc1
{[%clk 0:00:30]} 33... d3 {[%clk 0:00:09.5]} 34. Rxc5 {[%clk 0:00:29.2]} 34...
Bb2 {[%clk 0:00:09.3]} 35. R5xc2 {[%clk 0:00:27.5]} 35... dxc2 {[%clk
0:00:08.3]} 36. Rxc2 {[%clk 0:00:28.4]} 36... Ba3 {[%clk 0:00:08.5]} 37. Rc7+
{[%clk 0:00:28]} 37... Kg6 {[%clk 0:00:07.7]} 38. Rxa7 {[%clk 0:00:24.8]} 38...
Bd6 {[%clk 0:00:07.1]} 39. g3 {[%clk 0:00:24.8]} 39... Bb8 {[%clk 0:00:06.4]}
40. Rb7 {[%clk 0:00:24.6]} 40... h5 {[%clk 0:00:05.6]} 41. Ne3 {[%clk
0:00:23.9]} 41... Rhf8 {[%clk 0:00:04.9]} 42. Be4+ {[%clk 0:00:23.9]} 42... Kh6
{[%clk 0:00:04.6]} 43. Kg2 {[%clk 0:00:23.5]} 43... g6 {[%clk 0:00:04.5]} 44. h4
{[%clk 0:00:22.8]} 44... Rde8 {[%clk 0:00:04.2]} 45. Bf3 {[%clk 0:00:22.6]}
45... Be5 {[%clk 0:00:03.6]} 46. a4 {[%clk 0:00:22.6]} 46... Bd4 {[%clk
0:00:03.4]} 47. Nd5 {[%clk 0:00:21.1]} 47... Bc5 {[%clk 0:00:02.5]} 48. a5
{[%clk 0:00:20.8]} 48... Rd8 {[%clk 0:00:01.8]} 49. Nf4 {[%clk 0:00:19.2]} 1-0

[Event "*** Titled Tuesday Blitz"]
[Site "Chess.com"]
[Date "2020.10.27"]
[Round "4"]
[White "FlamingPhoenix2910"]
[Black "GoltsevDmitry2000"]
[Result "0-1"]
[WhiteElo "2870"]
[BlackElo "2711"]
[TimeControl "180+1"]
[EndTime "10:39:21 PDT"]
[Termination "GoltsevDmitry2000 won by resignation"]

1. e4 {[%clk 0:02:59.4]} 1... c5 {[%clk 0:02:59.8]} 2. Nf3 {[%clk 0:03:00]} 2...
e6 {[%clk 0:02:59.6]} 3. Nc3 {[%clk 0:03:00.3]} 3... Nc6 {[%clk 0:02:55.9]} 4.
Bb5 {[%clk 0:03:00.5]} 4... a6 {[%clk 0:02:55]} 5. Bxc6 {[%clk 0:03:00.5]} 5...
bxc6 {[%clk 0:02:52.7]} 6. e5 {[%clk 0:03:01.4]} 6... Ne7 {[%clk 0:02:47.7]} 7.
O-O {[%clk 0:03:00]} 7... Ng6 {[%clk 0:02:45.1]} 8. Re1 {[%clk 0:02:59.9]} 8...
f5 {[%clk 0:02:38.9]} 9. exf6 {[%clk 0:02:58.2]} 9... gxf6 {[%clk 0:02:39.8]}
10. d4 {[%clk 0:02:58.5]} 10... cxd4 {[%clk 0:02:38.9]} 11. Nxd4 {[%clk
0:02:56]} 11... Bc5 {[%clk 0:02:35.9]} 12. Be3 {[%clk 0:02:52.5]} 12... Ba7
{[%clk 0:02:21.1]} 13. Qh5 {[%clk 0:02:48.9]} 13... O-O {[%clk 0:02:12.8]} 14.
Rad1 {[%clk 0:02:48.8]} 14... Qe8 {[%clk 0:02:08.3]} 15. Ne4 {[%clk 0:02:38]}
15... Bb8 {[%clk 0:01:50.9]} 16. Bh6 {[%clk 0:02:28.6]} 16... Rf7 {[%clk
0:01:44.8]} 17. Nf5 {[%clk 0:02:28.9]} 17... Qd8 {[%clk 0:01:35.7]} 18. Nfd6
{[%clk 0:02:03]} 18... Bxd6 {[%clk 0:01:31.4]} 19. Rxd6 {[%clk 0:02:03.4]} 19...
Rb8 {[%clk 0:01:26.1]} 20. Red1 {[%clk 0:02:00.8]} 20... Qe7 {[%clk 0:01:15.1]}
21. b3 {[%clk 0:02:00]} 21... Rb5 {[%clk 0:01:11.8]} 22. Qf3 {[%clk 0:01:51.9]}
22... Rd5 {[%clk 0:01:02.4]} 23. c4 {[%clk 0:01:52]} 23... Rxd1+ {[%clk
0:00:58.4]} 24. Qxd1 {[%clk 0:01:51.3]} 24... f5 {[%clk 0:00:49.3]} 25. Bg5
{[%clk 0:01:50.7]} 25... Qf8 {[%clk 0:00:47.3]} 26. Nc5 {[%clk 0:01:50.6]} 26...
h6 {[%clk 0:00:38.1]} 27. Bc1 {[%clk 0:01:44.2]} 27... Kh7 {[%clk 0:00:34.2]}
28. Nxd7 {[%clk 0:01:40.4]} 28... Qg7 {[%clk 0:00:27.3]} 29. Nb6 {[%clk
0:01:35.2]} 29... Bb7 {[%clk 0:00:23.6]} 30. c5 {[%clk 0:01:34.2]} 30... e5
{[%clk 0:00:13.2]} 31. Qh5 {[%clk 0:01:28.8]} 31... a5 {[%clk 0:00:10.1]} 32.
Nc4 {[%clk 0:01:26.4]} 32... Ba6 {[%clk 0:00:03.7]} 33. Ne3 {[%clk 0:01:16.9]}
33... Ne7 {[%clk 0:00:02.9]} 34. h3 {[%clk 0:01:11.1]} 34... Bd3 {[%clk
0:00:03.2]} 35. Nc4 {[%clk 0:01:07.2]} 35... Bxc4 {[%clk 0:00:03]} 36. Rxh6+
{[%clk 0:01:07.5]} 36... Qxh6 {[%clk 0:00:02.1]} 37. bxc4 {[%clk 0:01:08.4]}
37... Qxh5 {[%clk 0:00:01.7]} 38. g4 {[%clk 0:01:09]} 38... Qg6 {[%clk
0:00:02.6]} 39. f3 {[%clk 0:01:09.5]} 39... fxg4 {[%clk 0:00:03.5]} 40. fxg4
{[%clk 0:01:10.4]} 40... Rf3 {[%clk 0:00:04]} 0-1